bitfinex/quotes_ETHUSD_20241104
["timestamp","ask_amount","ask_price","bid_price","bid_amount"]
[1730706990557,4.0639,2460.7,2460.5,0.55]
[1730706991129,4.0639,2460.7,2460.4,1.2705204]
[1730706991369,4.0639,2460.7,2460.4,0.7933]
[1730706992460,4.06405,2460.6,2460.4,0.7933]
[1730706993316,4.06405,2460.6,2460.3,0.4772204]
[1730706993523,0.7587,2460.7,2460.2,1.2482204]
[1730706993524,4.06428,2460.5,2460.2,1.2482204]
[1730706993721,4.06439,2460.4,2460.2,0.94397572]
[1730706993921,4.06423,2460.5,2460.2,0.771]
[1730706995722,4.06439,2460.4,2460.2,0.771]
[1730707000863,4.06459,2460.3,2460.1,0.55]
[1730707001032,4.06439,2460.4,2460.0,0.55]
[1730707001227,4.06439,2460.4,2460.0,4.799091]
[1730707001558,4.06439,2460.4,2460.0,4.88038151]
[1730707003675,4.06439,2460.4,2460.0,4.88038153]
[1730707004361,4.06423,2460.5,2460.0,8.94534153]
[1730707004585,4.06391,2460.7,2460.2,4.61464]
[1730707004877,4.06391,2460.7,2460.3,1.838564]
[1730707008611,4.06411,2460.6,2460.3,1.838564]
[1730707012563,4.06411,2460.6,2460.3,1.3771]
[1730707016880,4.06388,2460.8,2460.3,1.3771]
[1730707017284,4.06391,2460.7,2460.3,1.3771]
[1730707017703,8.1277,2460.8,2460.3,5.44157]
[1730707018014,8.1277,2460.8,2460.3,6.40032419]
[1730707018199,4.06382,2460.8,2460.3,6.48160465]
[1730707018511,8.12764,2460.8,2460.3,6.48160465]
[1730707018808,4.06382,2460.8,2460.6,0.7838]
[1730707019673,4.06356,2460.9,2460.6,0.7838]
[1730707020506,4.06347,2461.0,2460.6,0.7838]
[1730707020507,4.06338,2461.0,2460.6,0.7838]
[1730707020716,4.06365,2460.9,2460.7,0.55]
[1730707021799,4.06371,2460.8,2460.7,0.55]
[1730707021980,1.66720992,2461.1,2460.7,0.55]
[1730707022317,4.06362,2460.9,2460.7,0.55]
[1730707022520,8.12731,2460.9,2460.7,0.55]
[1730707023907,4.06371,2460.8,2460.7,0.55]
[1730707024110,4.06388,2460.7,2460.6,0.7838]
[1730707024315,4.06388,2460.7,2460.6,0.55]
[1730707024476,2.48920992,2460.9,2460.5,0.55]
[1730707024691,4.06404,2460.6,2460.5,0.55]
[1730707028236,3.23132109,2461.1,2460.5,0.55]
[1730707028545,4.06374,2460.8,2460.5,0.55]
[1730707029405,8.12758,2460.8,2460.5,0.55]
[1730707030403,4.06374,2460.8,2460.5,0.63127585]
[1730707030640,4.06374,2460.8,2460.5,4.88651444]
[1730707031838,8.12757,2460.8,2460.5,4.80523859]
[1730707032043,8.12757,2460.8,2460.5,0.55]
[1730707032207,4.06374,2460.8,2460.5,0.55]
[1730707032720,4.06374,2460.8,2460.5,0.63127591]
[1730707032927,4.06374,2460.8,2460.5,0.55]
[1730707034948,4.06374,2460.8,2460.5,0.63127595]
[1730707035641,4.06374,2460.8,2460.5,0.93601605]
[1730707035848,4.06374,2460.8,2460.5,0.63127595]
[1730707036150,4.06374,2460.8,2460.5,0.93601576]
[1730707036603,4.06363,2460.9,2460.5,0.93601576]
[1730707036803,8.12734,2460.9,2460.5,0.93604061]
[1730707037002,4.06363,2460.9,2460.5,0.93604061]
[1730707037224,8.12731,2460.9,2460.5,0.80469402]
[1730707037609,2.10715669,2461.5,2461.1,4.06322]
[1730707037839,2.10715669,2461.5,2460.9,7.61354]
[1730707037840,1.41362428,2461.7,2461.3,0.8101]
[1730707038015,4.06265,2461.5,2461.1,0.98349984]
[1730707038347,8.12532,2461.5,2461.2,0.55]
[1730707038525,4.0628,2461.4,2461.2,0.55]
[1730707040308,4.06257,2461.5,2461.2,0.55]
[1730707040503,1.66720992,2461.6,2461.2,0.55]
[1730707040744,5.72962992,2461.6,2461.2,0.55]
[1730707040922,8.1249,2461.6,2461.2,0.55]
[1730707041743,4.06267,2461.5,2461.2,0.55]
[1730707043346,1.66720992,2461.8,2461.4,0.7869]
[1730707043557,4.06237,2461.7,2461.4,0.7869]
[1730707043759,5.72966992,2461.6,2461.2,5.39994]
[1730707043933,4.06256,2461.5,2461.2,1.3369]
[1730707044742,8.12528,2461.5,2461.2,1.3369]
[1730707045134,4.06256,2461.5,2461.2,1.3369]
[1730707045854,4.06256,2461.5,2461.2,1.33601145]
[1730707050627,4.06238,2461.7,2461.2,1.41726776]
[1730707050856,8.12473,2461.7,2461.3,4.06285]
[1730707051060,4.0624,2461.6,2461.2,5.48025776]
[1730707051241,4.0624,2461.6,2461.2,6.43460554]
[1730707052068,4.0624,2461.6,2461.2,6.35334923]
[1730707052247,4.0624,2461.6,2461.2,10.41627923]
[1730707052640,4.0624,2461.6,2461.2,6.35328923]
[1730707053174,4.0624,2461.6,2461.2,6.43454126]
[1730707053542,4.0624,2461.6,2461.2,6.35328923]
[1730707054249,4.0624,2461.6,2461.2,10.41626923]
[1730707054545,4.06228,2461.7,2461.3,5.10445692]
[1730707054751,4.06213,2461.8,2461.5,0.7737]
[1730707058881,1.66720992,2462.0,2461.5,0.7737]
[1730707059092,4.06193,2461.9,2461.5,4.8362]
[1730707059241,4.06193,2461.9,2461.5,5.8383723]
[1730707059582,4.06211,2461.8,2461.5,1.7758723]
[1730707059738,4.06193,2461.9,2461.5,5.8384223]
[1730707059934,4.06193,2461.9,2461.5,1.7758723]
[1730707060180,4.06208,2461.8,2461.5,1.7758723]
[1730707060345,1.66720992,2462.0,2461.5,5.8384123]
[1730707060546,1.66720992,2462.8,2461.8,0.772]
[1730707060745,0.7565,2462.5,2462.1,0.55]
[1730707060980,5.72837992,2462.4,2462.1,0.55]
[1730707061186,4.06132,2462.3,2462.1,0.55]
[1730707064074,4.06142,2462.2,2461.9,0.55]
[1730707065405,4.0614,2462.2,2461.9,0.55]
[1730707066001,4.0613,2462.3,2461.9,4.61188]
[1730707066788,4.0613,2462.3,2461.9,0.55]
[1730707067307,4.0613,2462.3,2461.9,4.61187]
[1730707067688,8.1227,2462.3,2461.9,0.55]
[1730707067899,4.0613,2462.3,2461.9,0.55]
[1730707068211,4.0613,2462.3,2461.9,4.61187]
[1730707068589,4.0613,2462.3,2461.9,0.55]
[1730707068913,4.06143,2462.2,2461.9,0.55]
[1730707069421,4.0613,2462.3,2461.9,4.61189]
[1730707069577,4.0613,2462.3,2461.9,0.55]
[1730707069775,8.12266,2462.3,2461.9,0.55]
[1730707070000,4.0613,2462.3,2461.9,0.55]
[1730707070189,4.0613,2462.3,2461.9,4.69311977]
[1730707072271,4.0613,2462.3,2461.9,3.63122977]
[1730707072471,4.0613,2462.3,2461.9,7.69304977]
[1730707072694,4.0613,2462.3,2461.9,7.61182]
[1730707073522,4.0613,2462.3,2461.9,3.55]
[1730707073729,4.0613,2462.3,2461.9,7.69307979]
[1730707073938,4.0613,2462.3,2461.9,7.61185]
[1730707074825,8.12268,2462.3,2461.9,7.61185]
[1730707074992,4.0613,2462.3,2461.9,7.61185]
[1730707075392,4.0614,2462.2,2461.9,7.61185]
[1730707075592,4.06141,2462.2,2461.9,0.55]
[1730707075808,4.0613,2462.3,2461.9,4.61188]
[1730707076616,4.06142,2462.2,2461.9,0.55]
[1730707077300,4.0613,2462.3,2461.9,0.55]
[1730707077499,8.1227,2462.3,2461.9,4.61188]
[1730707078027,4.0613,2462.3,2461.9,4.61188]
[1730707078535,1.66720992,2462.6,2462.0,4.91768985]
[1730707078836,4.06123,2462.4,2462.1,0.55]
[1730707081946,4.06126,2462.3,2462.1,0.55]
[1730707083417,4.06164,2462.1,2461.8,0.55]
[1730707083621,4.06206,2461.8,2461.3,4.866]
[1730707083950,1.66720992,2461.8,2461.4,4.06262]
[1730707084121,1.66720992,2461.8,2461.4,4.955482]
[1730707084621,5.72927992,2461.8,2461.4,4.955482]
[1730707084827,5.72927992,2461.8,2461.5,0.55]
[1730707086319,6.54738992,2462.0,2461.5,0.63124285]
[1730707086549,6.54738992,2462.0,2461.6,0.8329]
[1730707086550,4.06197,2461.9,2461.6,0.8329]
[1730707088415,4.0619,2461.9,2461.6,0.8329]
[1730707088763,4.06223,2461.7,2461.5,0.55]
[1730707090727,5.72927992,2461.8,2461.5,0.55]
[1730707092514,4.06239,2461.6,2461.5,0.55]
[1730707092952,5.72927992,2461.8,2461.5,0.55]
[1730707093138,4.06224,2461.7,2461.5,0.55]
[1730707096974,4.06208,2461.8,2461.5,0.55]
[1730707097540,5.72928992,2461.8,2461.5,0.55]
[1730707098860,4.06225,2461.7,2461.5,0.55]
[1730707105488,1.66720992,2461.8,2461.5,0.55]
[1730707105666,4.0623,2461.7,2461.5,0.55]
[1730707105869,4.06239,2461.6,2461.5,0.55]
[1730707106700,8.12466,2461.7,2461.5,0.55]
[1730707106876,4.06239,2461.6,2461.5,0.55]
[1730707107198,4.0623,2461.7,2461.5,0.55]
[1730707107775,4.0624,2461.6,2461.4,0.8083]
[1730707108168,4.06226,2461.7,2461.4,0.8083]
[1730707108997,2.48550992,2462.0,2461.4,0.8083]
[1730707109262,4.06224,2461.7,2461.4,0.8083]
[1730707109468,4.06207,2461.8,2461.4,1.60354066]
[1730707110906,4.06208,2461.8,2461.5,1.40214659]
[1730707111416,4.06193,2461.9,2461.5,1.3209]
[1730707113619,8.12394,2461.9,2461.5,1.3209]
[1730707114679,4.06216,2461.8,2461.5,1.3209]
[1730707115928,9.79159992,2461.8,2461.5,1.3209]
[1730707116094,4.06223,2461.7,2461.5,1.3209]
[1730707116710,1.66720992,2461.8,2461.5,1.3209]
[1730707116916,5.72927992,2461.8,2461.5,1.3209]
[1730707117314,4.06224,2461.7,2461.5,1.3209]
[1730707126240,4.06239,2461.6,2461.4,0.7857]
[1730707127557,4.06239,2461.6,2461.3,0.47801191]
[1730707127773,4.06239,2461.6,2461.2,3.818]
[1730707128077,4.06239,2461.6,2461.3,1.02801661]
[1730707128273,4.06239,2461.6,2461.3,0.55]
[1730707129171,4.06239,2461.6,2461.4,0.47836997]
[1730707129344,4.06239,2461.6,2461.3,0.55]
[1730707129669,4.06239,2461.6,2461.4,0.47836507]
[1730707129834,4.06239,2461.6,2461.3,0.55]
[1730707130040,4.06239,2461.6,2461.4,0.47836586]
[1730707130257,4.06239,2461.6,2461.3,0.55]
[1730707130465,4.06239,2461.6,2461.4,0.17341371]
[1730707130649,4.06239,2461.6,2461.3,0.55]
[1730707130947,4.06239,2461.6,2461.4,0.47836694]
[1730707131143,4.06239,2461.6,2461.3,0.55]
[1730707131437,4.06256,2461.5,2461.4,0.47835557]
[1730707131750,6.48632992,2461.8,2461.4,0.47835557]
[1730707131951,4.06242,2461.6,2461.4,0.30495324]
[1730707132672,8.12493,2461.6,2461.4,0.30495324]
[1730707133150,4.06242,2461.6,2461.4,0.30495324]
[1730707133344,8.12491,2461.6,2461.4,0.30495324]
[1730707133667,4.06242,2461.6,2461.4,0.30495324]
[1730707134239,4.06256,2461.5,2461.4,0.30495324]
[1730707135487,5.79387899,2461.5,2461.4,0.30495324]
[1730707137284,5.79387899,2461.5,2461.1,0.47828605]
[1730707137435,4.0628,2461.4,2461.2,0.47828605]
[1730707137637,4.0628,2461.4,2461.1,0.55]
[1730707137875,4.0628,2461.4,2461.2,0.30487852]
[1730707138173,4.0628,2461.4,2461.1,0.55]
[1730707138343,4.0628,2461.4,2461.2,0.30485159]
[1730707138551,4.0628,2461.4,2461.1,0.55]
[1730707139060,8.87732,2461.5,2461.1,0.55]
[1730707139450,8.87732,2461.5,2461.2,0.30482691]
[1730707139652,8.87732,2461.5,2461.1,0.55]
[1730707139852,8.87732,2461.5,2461.2,0.30482397]
[1730707140077,4.81466,2461.5,2461.1,0.55]
[1730707140277,4.06256,2461.5,2461.2,0.47815388]
[1730707140440,8.12521,2461.5,2461.1,0.55]
[1730707140784,8.12521,2461.5,2461.2,0.30481902]
[1730707140962,8.12521,2461.5,2461.1,0.55]
[1730707141155,4.06273,2461.4,2461.2,0.30482114]
[1730707141357,4.06273,2461.4,2461.1,0.55]
[1730707142170,8.12523,2461.5,2461.1,0.55]
[1730707142687,4.06273,2461.4,2461.1,0.55]
[1730707143471,4.0629,2461.3,2461.1,0.55]
[1730707143657,4.06305,2461.2,2461.0,3.7657]
[1730707143851,4.06305,2461.2,2461.0,0.7657]
[1730707144076,4.06322,2461.1,2460.9,0.72331737]
[1730707144281,5.73025992,2461.2,2460.9,0.55]
[1730707144583,4.06305,2461.2,2460.9,0.55]
[1730707145687,4.06296,2461.3,2460.9,1.10005054]
[1730707146066,4.06306,2461.2,2460.9,1.10005054]
[1730707146384,1.66720992,2461.4,2460.9,1.10005054]
[1730707146571,4.06302,2461.3,2461.0,0.7527]
[1730707146888,4.06308,2461.2,2461.0,0.7527]
[1730707149959,8.12606,2461.3,2461.0,0.7527]
[1730707150649,4.06308,2461.2,2461.0,0.7527]
[1730707152406,5.73028992,2461.2,2461.0,0.7527]
[1730707157419,5.72999992,2461.4,2461.0,1.24246554]
[1730707157611,5.72999992,2461.4,2461.0,1.3237234]
[1730707161907,5.72999992,2461.4,2461.0,1.24246554]
[1730707162128,9.79286992,2461.4,2461.0,0.7527]
[1730707162747,4.0629,2461.3,2461.0,0.7527]
[1730707165708,6.36623826,2461.4,2461.0,0.7527]
[1730707167448,6.36623826,2461.4,2461.0,0.83395801]
[1730707167611,6.36623826,2461.4,2461.0,0.7527]
[1730707167811,6.36623826,2461.4,2461.0,0.83395801]
[1730707168512,6.36623826,2461.4,2461.0,0.7527]
[1730707168721,6.36623826,2461.4,2461.0,4.89733803]
[1730707168910,5.72999992,2461.4,2461.0,4.89733803]
[1730707169135,5.72999992,2461.4,2461.0,1.73003383]
[1730707170315,5.72999992,2461.4,2461.0,1.6487758]
[1730707171251,5.72999992,2461.4,2461.0,1.95337656]
[1730707174353,5.72999992,2461.4,2461.0,1.6487758]
[1730707174527,5.72999992,2461.4,2461.0,1.82190872]
[1730707176007,5.72999992,2461.4,2461.0,1.6487758]
[1730707176304,5.72999992,2461.4,2461.0,0.7527]
[1730707177876,5.72999992,2461.4,2461.0,4.81608]
[1730707178281,5.72999992,2461.4,2461.0,0.7527]
[1730707179284,5.72999992,2461.4,2461.1,0.30483397]
[1730707179492,5.72999992,2461.4,2461.0,0.7527]
[1730707179806,5.72999992,2461.4,2461.1,0.30483727]
[1730707179977,4.06289,2461.3,2461.0,0.7527]
[1730707180177,4.06289,2461.3,2461.1,0.4780585]
[1730707180409,4.06289,2461.3,2461.0,0.83395797]
[1730707180710,4.06289,2461.3,2461.1,0.47810732]
[1730707180898,4.06289,2461.3,2461.0,0.83395797]
[1730707181205,4.06289,2461.3,2461.1,0.47810714]
[1730707181407,4.06289,2461.3,2461.0,0.83395797]
[1730707181607,4.06289,2461.3,2461.1,0.17324511]
[1730707181809,5.72997992,2461.4,2461.0,0.83395797]
[1730707182011,5.72997992,2461.4,2461.1,0.4781303]
[1730707182311,5.72997992,2461.4,2461.0,0.83395797]
[1730707182608,5.72997992,2461.4,2461.1,0.47814421]
[1730707182808,5.72997992,2461.4,2461.0,0.83395797]
[1730707183109,5.72997992,2461.4,2461.1,0.47813852]
[1730707183312,5.72997992,2461.4,2461.0,0.83395797]
[1730707183512,5.72997992,2461.4,2461.1,0.47815697]
[1730707183813,5.72997992,2461.4,2461.0,0.83395797]
[1730707183999,5.72997992,2461.4,2461.1,0.47815673]
[1730707184297,5.72997992,2461.4,2461.0,0.83395797]
[1730707184600,5.72997992,2461.4,2461.1,0.47816903]
[1730707184775,9.79286992,2461.4,2461.0,0.83395797]
[1730707184971,5.72997992,2461.4,2461.1,0.47816903]
[1730707185171,5.72997992,2461.4,2461.0,0.83395797]
[1730707185401,4.0629,2461.3,2461.1,0.17326471]
[1730707185611,4.0629,2461.3,2461.0,1.73006977]
[1730707185612,4.0629,2461.3,2461.0,0.83395797]
[1730707185816,4.0629,2461.3,2461.1,0.47818301]
[1730707185973,4.0629,2461.3,2461.0,0.83395797]
[1730707186176,4.0629,2461.3,2461.1,0.47818197]
[1730707186501,4.0629,2461.3,2461.0,0.83395797]
[1730707186699,4.0629,2461.3,2461.1,0.47818277]
[1730707187010,4.0629,2461.3,2461.0,1.43679865]
[1730707187197,4.0629,2461.3,2461.1,0.47818279]
[1730707187417,4.0629,2461.3,2461.0,0.83395797]
[1730707187708,4.0629,2461.3,2461.1,0.47818928]
[1730707187913,4.0629,2461.3,2461.0,0.83395797]
[1730707188078,4.0629,2461.3,2461.1,0.47819599]
[1730707188281,4.0629,2461.3,2461.0,1.43679865]
[1730707188501,4.0629,2461.3,2461.1,0.47821088]
[1730707188701,4.0629,2461.3,2461.0,0.83395797]
[1730707189009,4.0629,2461.3,2461.1,0.30493601]
[1730707189316,4.0629,2461.3,2461.0,1.89311143]
[1730707189518,4.0629,2461.3,2461.1,0.47822541]
[1730707189674,4.0629,2461.3,2461.0,1.89311143]
[1730707189874,4.0629,2461.3,2461.1,0.47822556]
[1730707190074,4.0629,2461.3,2461.0,1.89311143]
[1730707190378,4.0629,2461.3,2461.1,0.47822319]
[1730707190580,4.0629,2461.3,2461.0,1.89311143]
[1730707190888,4.0629,2461.3,2461.1,0.47824416]
[1730707191088,4.0629,2461.3,2461.0,1.89311143]
[1730707191389,4.0629,2461.3,2461.1,0.47824499]
[1730707191593,4.0629,2461.3,2461.0,1.89311143]
[1730707191910,4.0629,2461.3,2461.1,0.47827767]
[1730707192119,4.0629,2461.3,2461.0,1.89311143]
[1730707192282,4.0629,2461.3,2461.1,0.47827655]
[1730707192623,4.0629,2461.3,2461.0,0.83395797]
[1730707192779,4.0629,2461.3,2461.1,0.478288]
[1730707193127,4.0629,2461.3,2461.0,1.89314678]
[1730707193279,4.0629,2461.3,2461.1,0.47828689]
[1730707193477,4.06305,2461.2,2461.0,0.7527]
[1730707193673,4.06305,2461.2,2461.1,0.4783062]
[1730707194733,5.73025992,2461.2,2461.1,0.4783062]
[1730707194939,4.06323,2461.1,2460.8,1.0319647]
[1730707195138,4.06323,2461.1,2460.9,0.47834037]
[1730707195301,4.06323,2461.1,2461.0,0.30501804]
[1730707195701,4.06323,2461.1,2461.0,0.47833607]
[1730707196333,4.06323,2461.1,2461.0,0.17331794]
[1730707196524,4.06323,2461.1,2461.0,0.30501146]
[1730707196712,4.06323,2461.1,2461.0,0.47833327]
[1730707197048,4.06323,2461.1,2461.0,0.30501146]
[1730707197197,4.06323,2461.1,2461.0,0.47833007]
[1730707198429,5.73029992,2461.2,2461.0,0.47832811]
[1730707198634,5.73029992,2461.2,2460.8,5.09568473]
[1730707198947,5.73029992,2461.2,2460.9,1.77963528]
[1730707199096,5.73029992,2461.2,2461.0,0.30499824]
[1730707199295,5.73029992,2461.2,2460.9,1.30132744]
[1730707199538,5.73029992,2461.2,2461.0,0.47829478]
[1730707199724,5.73029992,2461.2,2460.9,1.38258942]
[1730707199924,5.73029992,2461.2,2461.0,0.47829566]
[1730707200258,5.73029992,2461.2,2460.9,1.38258942]
[1730707200259,1.66720992,2461.2,2460.9,1.30132744]
[1730707200534,4.86663,2461.4,2460.9,1.30132744]
[1730707200535,2.47110992,2461.4,2461.0,0.61196774]
[1730707200751,4.06298,2461.3,2461.0,0.78527308]
[1730707200916,4.06316,2461.2,2461.0,0.47829729]
[1730707201115,4.06316,2461.2,2461.0,0.30499195]
[1730707201335,4.06316,2461.2,2460.9,3.0]
[1730707201512,4.06316,2461.2,2461.0,0.47829781]
[1730707201851,4.06316,2461.2,2460.9,3.0]
[1730707202014,4.06316,2461.2,2461.0,0.47829423]
[1730707202349,4.06316,2461.2,2460.9,3.86722841]
[1730707202539,4.06316,2461.2,2461.0,0.47829342]
[1730707202735,4.06316,2461.2,2460.9,3.86722841]
[1730707202736,4.06313,2461.2,2460.9,0.86722841]
[1730707202944,4.06313,2461.2,2461.0,0.47829976]
[1730707203251,4.06326,2461.1,2460.9,0.86722841]
[1730707203415,4.06326,2461.1,2461.0,0.47829534]
[1730707204422,4.06326,2461.1,2460.9,0.86722841]
[1730707204647,4.06338,2461.0,2460.9,0.86722841]
[1730707204829,4.06338,2461.0,2460.9,0.47830934]
[1730707205548,5.73058992,2461.0,2460.9,0.47830934]
[1730707205747,5.73058992,2461.0,2460.7,1.059123]
[1730707205748,4.06362,2460.9,2460.7,1.059123]
[1730707205954,1.66720992,2461.2,2460.7,4.0638]
[1730707206158,4.06336,2461.1,2460.9,0.815]
[1730707206913,4.06279,2461.4,2460.9,0.89626637]
[1730707207120,4.06279,2461.4,2461.0,4.5415386]
[1730707207418,2.46050992,2461.6,2461.0,5.01299106]
[1730707207614,4.06236,2461.7,2461.3,4.06282]
[1730707207839,4.06236,2461.7,2461.3,0.7951]
[1730707208249,1.66720992,2461.6,2461.3,0.7951]
[1730707208749,1.66720992,2461.6,2461.3,4.85798]
[1730707209050,5.72962992,2461.6,2461.3,1.7422]
[1730707209257,1.66720992,2461.6,2461.3,5.80507]
[1730707209632,6.55508992,2461.8,2461.4,4.06271]
[1730707209817,5.72928992,2461.8,2461.4,4.06271]
[1730707210225,5.72928992,2461.8,2461.4,4.14395559]
[1730707210438,1.66720992,2461.6,2461.4,1.04990256]
[1730707211443,5.72960992,2461.6,2461.3,4.7422]
[1730707211820,5.72960992,2461.6,2461.3,1.7422]
[1730707212151,1.66720992,2461.6,2461.3,5.80508]
[1730707212529,1.66720992,2461.6,2461.3,1.7422]
[1730707215531,4.06205,2461.9,2461.4,4.14389659]
[1730707215532,1.66720992,2461.8,2461.4,4.14389659]
[1730707215873,8.1241,2461.9,2461.5,0.99488966]
[1730707216167,5.72974992,2461.6,2461.3,0.7951]
[1730707216574,1.66720992,2461.6,2461.3,0.7951]
[1730707216874,1.66720992,2461.6,2461.2,0.72310908]
[1730707217073,1.66720992,2461.6,2461.2,2.08011809]
[1730707217232,1.66720992,2461.6,2461.2,1.90700901]
[1730707218083,1.66720992,2461.6,2461.4,0.7677]
[1730707218281,5.72940992,2461.8,2461.4,0.7677]
[1730707218579,5.72940992,2461.8,2461.5,0.42453296]
[1730707219574,1.66720992,2461.8,2461.5,0.42453296]
[1730707219962,5.72933992,2461.8,2461.5,0.42453296]
[1730707220492,1.66720992,2461.8,2461.5,0.50577615]
[1730707220704,2.46100992,2462.2,2461.6,1.3087]
[1730707220981,2.52869778,2462.7,2461.8,4.61196]
[1730707220982,4.06132,2462.3,2461.8,4.61196]
[1730707221369,1.66720992,2462.2,2461.8,4.61196]
[1730707221888,1.66720992,2462.2,2461.8,0.55]
[1730707222047,1.66720992,2462.2,2461.8,4.61194]
[1730707222361,1.66720992,2462.2,2461.9,0.7922]
[1730707222547,1.66720992,2462.2,2461.9,1.632614]
[1730707223579,5.72862992,2462.2,2461.9,1.632614]
[1730707223784,1.66720992,2462.2,2461.9,1.632614]
[1730707226156,2.46100992,2462.4,2462.0,4.06162]
[1730707226358,6.52209992,2462.4,2462.1,0.5694234]
[1730707226580,2.46100992,2462.4,2462.1,0.5694234]
[1730707226897,1.66720992,2462.4,2462.1,0.5694234]
[1730707227254,1.66720992,2462.4,2462.1,4.6309634]
[1730707227459,1.66720992,2462.4,2462.1,0.5694234]
[1730707227668,1.66720992,2462.4,2462.2,0.46311534]
[1730707227864,1.66720992,2462.4,2462.1,0.5694234]
[1730707227865,5.72828992,2462.4,2462.1,0.5694234]
[1730707228079,1.66720992,2462.4,2462.1,0.5694234]
[1730707229373,5.72834992,2462.4,2462.1,0.5694234]
[1730707229576,1.66720992,2462.4,2462.1,0.5694234]
[1730707230281,1.66720992,2462.4,2462.2,0.47123676]
[1730707231297,2.48400992,2462.6,2462.2,0.47123676]
[1730707231506,2.48400992,2462.6,2462.2,4.61380702]
[1730707232213,2.48400992,2462.6,2462.2,4.53258676]
[1730707232513,4.06034,2462.9,2462.4,0.8328]
[1730707232869,5.72762992,2462.8,2462.4,0.8328]
[1730707233069,1.66720992,2462.8,2462.4,4.89386]
[1730707234370,1.66720992,2462.8,2462.5,4.61088]
[1730707234565,5.72762992,2462.8,2462.4,0.8328]
[1730707235494,1.66720992,2462.8,2462.5,0.08120947]
[1730707235692,1.66720992,2462.8,2462.5,0.90362295]
[1730707235892,1.66720992,2462.8,2462.3,4.06115]
[1730707235893,4.06093,2462.5,2462.2,1.28763676]
[1730707236096,1.66720992,2462.4,2462.1,3.0]
[1730707236309,1.66720992,2462.4,2462.0,0.8164]
[1730707236476,5.72836992,2462.4,2462.0,0.8164]
[1730707237106,1.66720992,2462.4,2462.0,4.87812]
[1730707237269,1.66720992,2462.4,2462.1,0.97522319]
[1730707237679,0.8074,2462.7,2462.1,0.97522319]
[1730707237680,4.06091,2462.5,2462.1,0.97522319]
[1730707238183,5.72798992,2462.6,2462.1,0.97522319]
[1730707238385,4.06096,2462.5,2462.1,0.97522319]
[1730707238619,5.72804992,2462.6,2462.1,0.97522319]
[1730707238829,4.06091,2462.5,2462.1,0.97522319]
[1730707240724,9.78895992,2462.6,2462.1,0.97522319]
[1730707240881,5.72804992,2462.6,2462.2,0.58532332]
[1730707241521,4.06097,2462.5,2462.1,0.08122119]
[1730707241720,1.66720992,2462.6,2462.3,0.7904]
[1730707241919,4.06092,2462.5,2462.2,0.55]
[1730707242118,6.48531992,2462.6,2462.2,0.55]
[1730707242426,6.48531992,2462.6,2462.1,0.7904]
[1730707242427,4.06101,2462.5,2462.1,0.7904]
[1730707242724,1.66720992,2462.4,2462.1,1.575612]
[1730707243094,5.72834992,2462.4,2462.1,1.575612]
[1730707243421,1.66720992,2462.4,2462.1,0.785212]
[1730707243784,1.66720992,2462.2,2462.0,3.0]
[1730707244030,1.66720992,2462.2,2461.9,3.7904]
[1730707244188,5.72830992,2462.4,2462.0,0.08122589]
[1730707246238,1.66720992,2462.6,2462.2,4.06134]
[1730707246523,5.72769992,2462.8,2462.4,0.8225]
[1730707248428,5.72769992,2462.8,2462.4,1.37398829]
[1730707249089,1.66720992,2462.8,2462.4,1.37398829]
[1730707249297,1.66720992,2462.8,2462.5,0.55]
[1730707250009,1.66720992,2462.8,2462.5,0.63120777]
[1730707250396,6.50315992,2463.0,2462.5,4.69203777]
[1730707250698,6.50315992,2463.0,2462.6,0.60660261]
[1730707250897,10.56335992,2463.0,2462.6,0.60660261]
[1730707251228,1.66720992,2462.8,2462.6,0.60660261]
[1730707251798,1.66720992,2462.8,2462.7,0.7989]
[1730707252132,1.66720992,2462.8,2462.7,1.40054126]
[1730707253703,9.78759992,2463.0,2462.7,1.40054126]
[1730707254627,5.72735992,2463.0,2462.7,1.40054126]
[1730707255197,1.66720992,2463.0,2462.7,1.40054126]
[1730707255507,0.63602759,2463.4,2462.8,0.55]
[1730707255508,4.05982,2463.2,2462.8,0.55]
[1730707255705,5.72702992,2463.2,2462.9,0.90110613]
[1730707257410,4.06005,2463.1,2462.9,0.90110613]
[1730707257661,1.66720992,2463.0,2462.7,0.7989]
[1730707257830,5.72736992,2463.0,2462.7,0.7989]
[1730707260144,1.66720992,2463.0,2462.7,0.7989]
[1730707260311,1.66720992,2462.8,2462.7,0.7989]
[1730707260517,4.06026,2462.9,2462.7,0.7989]
[1730707260913,5.72730992,2463.0,2462.7,0.7989]
[1730707261228,5.72730992,2463.0,2462.7,1.59299949]
[1730707262051,1.66720992,2463.0,2462.7,1.59299949]
[1730707262754,5.72708992,2463.2,2462.9,0.793]
[1730707263049,4.05992,2463.1,2462.9,0.793]
[1730707264450,5.72697992,2463.2,2462.9,0.793]
[1730707264651,5.72697992,2463.2,2462.9,1.35775895]
[1730707267541,1.66720992,2463.2,2463.0,0.55]
[1730707268543,5.72675992,2463.4,2463.0,0.55]
[1730707269369,1.66720992,2463.4,2463.0,4.61001]
[1730707269583,5.72664992,2463.4,2463.2,0.7688]
[1730707269875,4.05959,2463.3,2463.1,0.540301]
[1730707270338,1.66720992,2463.2,2463.1,0.540301]
[1730707270538,5.72667992,2463.4,2463.1,0.540301]
[1730707270964,4.05929,2463.5,2463.1,0.540301]
[1730707271156,4.05929,2463.5,2463.2,0.5919181]
[1730707271877,4.05944,2463.4,2463.2,0.5919181]
[1730707272084,4.05929,2463.5,2463.2,0.5919181]
[1730707272851,8.11863,2463.5,2463.2,0.5919181]
[1730707273051,4.05929,2463.5,2463.2,0.5919181]
[1730707275667,8.11871,2463.5,2463.2,0.5919181]
[1730707276071,1.66720992,2463.4,2463.2,0.5919181]
[1730707276379,5.72670992,2463.4,2463.1,0.540301]
[1730707278357,1.66720992,2463.3,2463.0,0.7688]
[1730707278557,1.66720992,2463.1,2463.0,0.7688]
[1730707278783,5.72680992,2463.3,2463.0,0.7688]
[1730707279495,9.78648992,2463.3,2463.0,0.7688]